[Event "African Online-ch Women 2021"]
[Site "Online"]
[Date "2021.02.01"]
[Round "6.9"]
[White "Farnela, Nuzela Zacarias Musi"]
[Black "Madelta Glenda"]
[Result "0-1"]
[ECO "C11"]
[WhiteElo "1431"]
[BlackElo "1420"]
[Annotator "NA RC"]
[PlyCount "174"]
[EventDate "2021.02.01"]
[EventType "swiss"]
[EventCountry "NET"]
[SourceTitle "playchess.com"]
[Source "ChessBase"]
[SourceQuality "1"]
[TimeControl "1500+10"]

1. e4 {[%emt 0:00:00]} e6 {[%emt 0:00:07]} 2. Nc3 {[%emt 0:00:13]} d5 {[%emt 0:00:06]} 3. Nf3 {[%emt 0:00:08]} Nf6 {[%emt 0:00:08]} 4. e5 {[%emt 0:00:19]} Nfd7 {[%emt 0:00:04]} 5. d4 {[%emt 0:00:05]} c5 {[%emt 0:00:04]} 6. Ne2 {[%emt 0:00:23]} Be7 {[%emt 0:00:08]} 7. c3 {[%emt 0:00:05]} Nc6 {[%emt 0:00:05]} 8. Qc2 {[%emt 0:00:54]} b6 {[%emt 0:01:00]} 9. Bd2 {[%emt 0:00:30]} Bb7 {[%emt 0:00:05]} 10. Bf4 {[%emt 0:00:44]} Rc8 {[%emt 0:00:06]} 11. Qd1 {[%emt 0:00:56]} cxd4 {[%emt 0:00:19]} 12. Nexd4 {[%emt 0:00:37]} Nxd4 {[%emt 0:00:31]} 13. cxd4 {[%emt 0:00:10]} O-O {[%emt 0:00:04]} 14. Bd3 {[%emt 0:00:08]} f6 {[%emt 0:00:06]} 15. exf6 {[%emt 0:00:35]} Nxf6 {[%emt 0:00:17]} 16. O-O {[%emt 0:00:16]} Ne4 {[%emt 0:00:06]} 17. Be5 {[%emt 0:00:22]} Bd6 {[%emt 0:01:22]} 18. Bxd6 {[%emt 0:00:24]} Qxd6 {[%emt 0:00:25]} 19. Rc1 {[%emt 0:02:40]} Qf4 {[%emt 0:01:17]} 20. a3 {[%emt 0:01:58]} Kh8 {[%emt 0:00:38]} 21. Rxc8 {[%emt 0:02:20]} Bxc8 {[%emt 0:01:05]} 22. Qc1 {[%emt 0:00:14]} Qd6 {[%emt 0:03:57]} 23. Re1 {[%emt 0:00:16]} Bb7 {[%emt 0:00:59]} 24. Ng5 {[%emt 0:00:57]} Nxg5 {[%emt 0:06:33]} 25. Qxg5 {[%emt 0:00:11]} Qd7 {[%emt 0:00:12]} 26. Qg4 {[%emt 0:00:26]} Qf7 {[%emt 0:00:18]} 27. Rf1 {[%emt 0:00:25]} Bc8 {[%emt 0:00:05]} 28. Qh4 {[%emt 0:00:22]} h6 {[%emt 0:00:07]} 29. Qg3 {[%emt 0:00:11]} Qf4 {[%emt 0:01:13]} 30. Qg6 {[%emt 0:00:22]} Kg8 {[%emt 0:00:47]} 31. Qh7+ {[%emt 0:00:29]} Kf7 {[%emt 0:00:04]} 32. Bg6+ {[%emt 0:00:25]} Kf6 {[%emt 0:00:06]} 33. Bd3 {[%emt 0:00:23]} Qxd4 {[%emt 0:00:51]} 34. Qg6+ {[%emt 0:00:11]} Ke7 {[%emt 0:00:03]} 35. Qg3 {[%emt 0:00:27]} a5 {[%emt 0:00:48]} 36. Rc1 {[%emt 0:00:48]} Bd7 {[%emt 0:01:07]} 37. Rc2 {[%emt 0:03:58]} Rc8 {[%emt 0:00:30]} 38. Qe3 {[%emt 0:01:03]} Qxe3 {[%emt 0:00:15]} 39. fxe3 {[%emt 0:00:06]} Rxc2 {[%emt 0:00:03]} 40. Bxc2 {[%emt 0:00:05]} e5 {[%emt 0:00:04]} 41. Kf2 {[%emt 0:00:07]} Kf6 {[%emt 0:00:04]} 42. Bb3 {[%emt 0:00:14]} Bc6 {[%emt 0:00:10]} 43. g3 {[%emt 0:00:09]} d4 {[%emt 0:00:05]} 44. Bc4 {[%emt 0:00:28]} Kf5 {[%emt 0:00:26]} 45. exd4 {[%emt 0:00:14]} exd4 {[%emt 0:00:06]} 46. Bd3+ {[%emt 0:00:05]} Be4 {[%emt 0:00:05]} 47. Be2 {[%emt 0:00:28]} Ke5 {[%emt 0:00:10]} 48. Bd1 {[%emt 0:00:14]} Kd5 {[%emt 0:00:07]} 49. Ke2 {[%emt 0:00:09]} Kc4 {[%emt 0:00:09]} 50. Kd2 {[%emt 0:00:07]} b5 {[%emt 0:00:24]} 51. b3+ {[%emt 0:00:14]} Kc5 {[%emt 0:00:05]} 52. Be2 {[%emt 0:00:15]} Bd5 {[%emt 0:00:57]} 53. Kc2 {[%emt 0:00:12]} Be4+ {[%emt 0:00:18]} 54. Kd2 {[%emt 0:00:13]} g5 {[%emt 0:00:13]} 55. h3 {[%emt 0:01:10]} Bg2 {[%emt 0:00:47]} 56. h4 {[%emt 0:00:24]} gxh4 {[%emt 0:00:10]} 57. gxh4 {[%emt 0:00:06]} Be4 {[%emt 0:00:04]} 58. Bf1 {[%emt 0:00:20]} b4 {[%emt 0:00:29]} 59. a4 {[%emt 0:00:41]} Kd5 {[%emt 0:00:15]} 60. Be2 {[%emt 0:00:15]} Ke5 {[%emt 0:00:05]} 61. Bf1 {[%emt 0:00:33]} Kf4 {[%emt 0:00:05]} 62. Be2 {[%emt 0:00:07]} Kg3 {[%emt 0:00:05]} 63. Bd3 {[%emt 0:00:20]} Bxd3 {[%emt 0:01:15]} 64. Kxd3 {[%emt 0:00:05]} Kxh4 {[%emt 0:00:02]} 65. Kxd4 {[%emt 0:00:03]} Kg3 {[%emt 0:00:02]} 66. Kc5 {[%emt 0:00:03]} h5 {[%emt 0:00:02]} 67. Kb5 {[%emt 0:00:02]} h4 {[%emt 0:00:02]} 68. Kxa5 {[%emt 0:00:02]} h3 {[%emt 0:00:02]} 69. Kxb4 {[%emt 0:00:03]} h2 {[%emt 0:00:02]} 70. Kb5 {[%emt 0:00:03]} h1=Q {[%emt 0:00:05]} 71. b4 {[%emt 0:00:12]} Kf4 {[%emt 0:00:04]} 72. a5 {[%emt 0:00:06]} Ke5 {[%emt 0:00:04]} 73. Kb6 {[%emt 0:00:06]} Kd6 {[%emt 0:00:03]} 74. b5 {[%emt 0:00:05]} Qa8 {[%emt 0:00:32]} 75. a6 {[%emt 0:00:18]} Kd7 {[%emt 0:00:24]} 76. Ka5 {[%emt 0:01:19]} Qd8+ {[%emt 0:00:20]} 77. b6 {[%emt 0:00:12]} Kc6 {[%emt 0:00:05]} 78. a7 {[%emt 0:01:11]} Qxb6+ {[%emt 0:00:06]} 79. Ka4 {[%emt 0:00:18]} Qxa7+ {[%emt 0:00:17]} 80. Kb4 {[%emt 0:00:06]} Qc5+ {[%emt 0:00:04]} 81. Kb3 {[%emt 0:00:05]} Qd4 {[%emt 0:00:04]} 82. Kc2 {[%emt 0:00:06]} Kc5 {[%emt 0:00:06]} 83. Kb3 {[%emt 0:00:04]} Qc4+ {[%emt 0:00:04]} 84. Kb2 {[%emt 0:00:03]} Kb4 {[%emt 0:00:13]} 85. Ka1 {[%emt 0:00:17]} Qe2 {[%emt 0:00:05]} 86. Kb1 {[%emt 0:00:08]} Qd2 {[%emt 0:00:09]} 87. Ka1 {[%emt 0:00:09]} Kb3 {[%emt 0:00:03]} 0-1

[Event "African Online-ch Women 2021"]
[Site "Online"]
[Date "2021.02.01"]
[Round "6.10"]
[White "Ben Said, Safa"]
[Black "Botlhole, Kgalalelo"]
[Result "0-1"]
[ECO "B92"]
[WhiteElo "1577"]
[BlackElo "1705"]
[Annotator "NA RC"]
[PlyCount "60"]
[EventDate "2021.02.01"]
[EventType "swiss"]
[EventCountry "NET"]
[SourceTitle "playchess.com"]
[Source "ChessBase"]
[SourceQuality "1"]
[TimeControl "1500+10"]

1. e4 {[%emt 0:00:00]} c5 {[%emt 0:00:06]} 2. Nf3 {[%emt 0:00:05]} d6 {[%emt 0:00:03]} 3. d4 {[%emt 0:00:05]} cxd4 {[%emt 0:00:03]} 4. Nxd4 {[%emt 0:00:02]} Nf6 {[%emt 0:00:01]} 5. Nc3 {[%emt 0:00:03]} a6 {[%emt 0:00:02]} 6. Be2 {[%emt 0:00:05]} e5 {[%emt 0:00:04]} 7. Nf3 {[%emt 0:00:20]} Be6 {[%emt 0:00:13]} 8. Bg5 {[%emt 0:01:29]} Be7 {[%emt 0:00:02]} 9. Qd2 {[%emt 0:00:28]} Nbd7 {[%emt 0:00:26]} 10. O-O {[%emt 0:02:26]} O-O {[%emt 0:00:07]} 11. Ne1 {[%emt 0:01:15]} Rc8 {[%emt 0:00:09]} 12. Rd1 {[%emt 0:01:04]} b5 {[%emt 0:00:56]} 13. Nd3 {[%emt 0:00:23]} Rxc3 {[%emt 0:00:18]} 14. Bxf6 {[%emt 0:00:21]} Rxd3 {[%emt 0:00:48]} 15. Qxd3 {[%emt 0:01:11]} Nxf6 {[%emt 0:00:09]} 16. Kh1 {[%emt 0:02:33]} Qc7 {[%emt 0:00:37]} 17. f3 {[%emt 0:03:12]} h6 {[%emt 0:00:47]} 18. b3 {[%emt 0:01:54]} Rc8 {[%emt 0:00:19]} 19. Rc1 {[%emt 0:00:27]} d5 {[%emt 0:00:12]} 20. exd5 {[%emt 0:00:08]} Nxd5 {[%emt 0:00:03]} 21. c4 {[%emt 0:00:05]} Nf4 {[%emt 0:00:11]} 22. Qe4 {[%emt 0:00:51]} Nxe2 {[%emt 0:00:45]} 23. Qxe2 {[%emt 0:00:06]} bxc4 {[%emt 0:00:03]} 24. Rfe1 {[%emt 0:00:38]} c3 {[%emt 0:01:02]} 25. Qxe5 {[%emt 0:00:50]} Bd6 {[%emt 0:00:51]} 26. Qe4 {[%emt 0:00:16]} Bxh2 {[%emt 0:00:10]} 27. Re3 {[%emt 0:00:17]} Bg3 {[%emt 0:03:20]} 28. Rexc3 {[%emt 0:00:35]} Qxc3 {[%emt 0:00:10]} 29. Rxc3 {[%emt 0:00:13]} Rxc3 {[%emt 0:00:03]} 30. Qb1 {[%emt 0:02:40]} Re3 {[%emt 0:00:07]} 0-1

[Event "African Online-ch Women 2021"]
[Site "Online"]
[Date "2021.02.01"]
[Round "6.11"]
[White "Ndirangu, Joyce Nyaruai"]
[Black "Namangale, Susan"]
[Result "1-0"]
[ECO "E61"]
[WhiteElo "1659"]
[BlackElo "1344"]
[Annotator "NA RC"]
[PlyCount "93"]
[EventDate "2021.02.01"]
[EventType "swiss"]
[EventCountry "NET"]
[SourceTitle "playchess.com"]
[Source "ChessBase"]
[SourceQuality "1"]
[TimeControl "1500+10"]

1. d4 {[%emt 0:00:00]} g6 {[%emt 0:00:12]} 2. Nf3 {[%emt 0:00:04]} Nf6 {[%emt 0:00:06]} 3. Bf4 {[%emt 0:00:05]} d6 {[%emt 0:00:10]} 4. e3 {[%emt 0:00:03]} Bg7 {[%emt 0:00:05]} 5. c4 {[%emt 0:00:03]} O-O {[%emt 0:00:14]} 6. Nc3 {[%emt 0:00:14]} c6 {[%emt 0:00:10]} 7. Be2 {[%emt 0:00:05]} Nbd7 {[%emt 0:00:14]} 8. h3 {[%emt 0:00:15]} Re8 {[%emt 0:00:50]} 9. O-O {[%emt 0:00:09]} Nh5 {[%emt 0:00:39]} 10. Bh2 {[%emt 0:00:28]} f5 {[%emt 0:00:12]} 11. d5 {[%emt 0:03:23]} c5 {[%emt 0:00:21]} 12. Ng5 {[%emt 0:00:06]} Nhf6 {[%emt 0:01:56]} 13. Ne6 {[%emt 0:00:06]} Qb6 {[%emt 0:00:20]} 14. Na4 {[%emt 0:00:37]} Qa5 {[%emt 0:00:47]} 15. a3 {[%emt 0:00:03]} b5 {[%emt 0:00:36]} 16. b4 {[%emt 0:00:08]} Qxa4 {[%emt 0:01:06]} 17. Qxa4 {[%emt 0:00:05]} bxa4 {[%emt 0:00:23]} 18. Rab1 {[%emt 0:00:03]} Rb8 {[%emt 0:00:25]} 19. Bd1 {[%emt 0:01:28]} Ne4 {[%emt 0:00:21]} 20. Nxg7 {[%emt 0:01:58]} Nd2 {[%emt 0:00:12]} 21. Nxe8 {[%emt 0:00:04]} Nxb1 {[%emt 0:00:42]} 22. Nc7 {[%emt 0:00:18]} Nd2 {[%emt 0:00:25]} 23. Re1 {[%emt 0:00:05]} Nxc4 {[%emt 0:00:06]} 24. Bxa4 {[%emt 0:00:09]} Ndb6 {[%emt 0:00:27]} 25. Bc6 {[%emt 0:00:18]} Nxa3 {[%emt 0:00:40]} 26. bxc5 {[%emt 0:00:03]} Nd7 {[%emt 0:01:14]} 27. cxd6 {[%emt 0:00:27]} exd6 {[%emt 0:00:23]} 28. Bxd6 {[%emt 0:00:03]} Nc4 {[%emt 0:00:39]} 29. Bg3 {[%emt 0:00:12]} Nde5 {[%emt 0:00:51]} 30. Bb5 {[%emt 0:02:06]} a6 {[%emt 0:00:46]} 31. Bxc4 {[%emt 0:00:08]} Nxc4 {[%emt 0:00:21]} 32. Nxa6 {[%emt 0:00:02]} Rb6 {[%emt 0:01:06]} 33. Nc7 {[%emt 0:00:15]} Bb7 {[%emt 0:00:54]} 34. Rd1 {[%emt 0:00:09]} Nd6 {[%emt 0:00:23]} 35. f3 {[%emt 0:00:46]} g5 {[%emt 0:01:02]} 36. Bxd6 {[%emt 0:01:17]} Rxd6 {[%emt 0:00:09]} 37. e4 {[%emt 0:00:02]} Rd7 {[%emt 0:00:42]} 38. Ne6 {[%emt 0:00:11]} fxe4 {[%emt 0:00:36]} 39. fxe4 {[%emt 0:00:04]} h6 {[%emt 0:00:09]} 40. Nc5 {[%emt 0:00:04]} Rc7 {[%emt 0:00:26]} 41. d6 {[%emt 0:00:45]} Rxc5 {[%emt 0:02:10]} 42. d7 {[%emt 0:00:03]} Bxe4 {[%emt 0:01:28]} 43. d8=Q+ {[%emt 0:00:04]} Kf7 {[%emt 0:00:11]} 44. Rd7+ {[%emt 0:00:12]} Kg6 {[%emt 0:00:37]} 45. Qe8+ {[%emt 0:00:38]} Kf5 {[%emt 0:00:41]} 46. Rf7+ {[%emt 0:00:04]} Kg6 {[%emt 0:00:56]} 47. Rf8+ {[%emt 0:00:18]} 1-0

[Event "African Online-ch Women 2021"]
[Site "Online"]
[Date "2021.02.01"]
[Round "6.12"]
[White "Du Plessis, Anika"]
[Black "Malehloa, Likhomo"]
[Result "1-0"]
[ECO "C01"]
[WhiteElo "1541"]
[BlackElo "1331"]
[Annotator "NA RC"]
[PlyCount "119"]
[EventDate "2021.02.01"]
[EventType "swiss"]
[EventCountry "NET"]
[SourceTitle "playchess.com"]
[Source "ChessBase"]
[SourceQuality "1"]
[TimeControl "1500+10"]

1. e4 {[%emt 0:00:00]} e6 {[%emt 0:00:16]} 2. d4 {[%emt 0:00:03]} d5 {[%emt 0:00:05]} 3. exd5 {[%emt 0:00:06]} exd5 {[%emt 0:00:05]} 4. Bd3 {[%emt 0:00:02]} Nf6 {[%emt 0:00:05]} 5. Nf3 {[%emt 0:00:14]} Be7 {[%emt 0:00:05]} 6. O-O {[%emt 0:00:03]} O-O {[%emt 0:00:02]} 7. Bf4 {[%emt 0:00:02]} Bg4 {[%emt 0:00:05]} 8. Nbd2 {[%emt 0:00:03]} c6 {[%emt 0:00:03]} 9. Re1 {[%emt 0:00:02]} Nbd7 {[%emt 0:00:03]} 10. c3 {[%emt 0:00:22]} Re8 {[%emt 0:00:11]} 11. Qc2 {[%emt 0:00:30]} Rc8 {[%emt 0:00:38]} 12. Ne5 {[%emt 0:02:24]} Bh5 {[%emt 0:01:27]} 13. Ndf3 {[%emt 0:00:37]} Bg6 {[%emt 0:00:16]} 14. Nxg6 {[%emt 0:00:05]} hxg6 {[%emt 0:00:05]} 15. Re2 {[%emt 0:00:16]} Nh5 {[%emt 0:00:12]} 16. Bd2 {[%emt 0:00:11]} Bd6 {[%emt 0:00:18]} 17. Rxe8+ {[%emt 0:00:28]} Qxe8 {[%emt 0:00:06]} 18. Re1 {[%emt 0:00:02]} Qf8 {[%emt 0:00:12]} 19. g3 {[%emt 0:01:18]} Re8 {[%emt 0:00:08]} 20. Rxe8 {[%emt 0:00:16]} Qxe8 {[%emt 0:00:05]} 21. c4 {[%emt 0:01:32]} dxc4 {[%emt 0:00:40]} 22. Bxc4 {[%emt 0:00:03]} Nb6 {[%emt 0:00:07]} 23. Bd3 {[%emt 0:02:25]} Nf6 {[%emt 0:00:21]} 24. b4 {[%emt 0:01:03]} Nfd5 {[%emt 0:00:31]} 25. a3 {[%emt 0:00:25]} Bb8 {[%emt 0:01:31]} 26. Ng5 {[%emt 0:01:06]} Nf6 {[%emt 0:00:43]} 27. Qb3 {[%emt 0:02:00]} Nfd5 {[%emt 0:01:14]} 28. a4 {[%emt 0:01:07]} Nd7 {[%emt 0:01:03]} 29. b5 {[%emt 0:00:50]} N7f6 {[%emt 0:00:20]} 30. bxc6 {[%emt 0:01:58]} Qxc6 {[%emt 0:00:12]} 31. Bc4 {[%emt 0:00:17]} Qd7 {[%emt 0:03:11]} 32. Bc1 {[%emt 0:01:45]} b6 {[%emt 0:00:49]} 33. a5 {[%emt 0:00:36]} Bc7 {[%emt 0:00:13]} 34. a6 {[%emt 0:00:33]} Bb8 {[%emt 0:00:44]} 35. Nf3 {[%emt 0:00:41]} Qf5 {[%emt 0:01:13]} 36. Kg2 {[%emt 0:00:27]} g5 {[%emt 0:00:21]} 37. Nxg5 {[%emt 0:00:58]} Bd6 {[%emt 0:00:31]} 38. Bd3 {[%emt 0:00:24]} Qc8 {[%emt 0:01:08]} 39. Bd2 {[%emt 0:00:20]} Qc6 {[%emt 0:00:59]} 40. f3 {[%emt 0:00:30]} Kf8 {[%emt 0:01:02]} 41. Ne4 {[%emt 0:00:06]} Bc7 {[%emt 0:00:22]} 42. Bb5 {[%emt 0:00:23]} Qe6 {[%emt 0:00:14]} 43. Nxf6 {[%emt 0:00:04]} Nxf6 {[%emt 0:00:07]} 44. Bb4+ {[%emt 0:00:11]} Kg8 {[%emt 0:00:17]} 45. Qxe6 {[%emt 0:00:11]} fxe6 {[%emt 0:00:06]} 46. Kf2 {[%emt 0:00:17]} Kf7 {[%emt 0:00:05]} 47. Bc6 {[%emt 0:00:15]} Bd8 {[%emt 0:00:53]} 48. Bd6 {[%emt 0:00:17]} Nd5 {[%emt 0:00:19]} 49. Bb8 {[%emt 0:00:04]} Nb4 {[%emt 0:00:05]} 50. Bb5 {[%emt 0:00:06]} Ke7 {[%emt 0:00:09]} 51. Bxa7 {[%emt 0:00:04]} Kd6 {[%emt 0:00:02]} 52. Bb8+ {[%emt 0:00:02]} Kd5 {[%emt 0:00:04]} 53. a7 {[%emt 0:00:01]} Kxd4 {[%emt 0:00:26]} 54. a8=Q {[%emt 0:00:09]} Bf6 {[%emt 0:00:04]} 55. Bd6 {[%emt 0:00:11]} Nd5 {[%emt 0:00:07]} 56. Qa4+ {[%emt 0:00:10]} Kc3 {[%emt 0:00:05]} 57. Qc4+ {[%emt 0:00:19]} Kb2 {[%emt 0:00:07]} 58. Ba4 {[%emt 0:00:07]} Bc3 {[%emt 0:00:18]} 59. Ba3+ {[%emt 0:00:08]} Kxa3 {[%emt 0:00:04]} 60. Qb3# {[%emt 0:00:02]} 1-0

[Event "African Online-ch Women 2021"]
[Site "Online"]
[Date "2021.02.01"]
[Round "6.13"]
[White "Leboela, Maboloko"]
[Black "Vilhete, Vania Fausto Da T."]
[Result "0-1"]
[ECO "A05"]
[WhiteElo "1296"]
[BlackElo "1799"]
[Annotator "NA RC"]
[PlyCount "148"]
[EventDate "2021.02.01"]
[EventType "swiss"]
[EventCountry "NET"]
[SourceTitle "playchess.com"]
[Source "ChessBase"]
[SourceQuality "1"]
[TimeControl "1500+10"]

1. Nf3 {[%emt 0:00:00]} Nf6 {[%emt 0:00:05]} 2. Nc3 {[%emt 0:00:06]} e6 {[%emt 0:00:04]} 3. g3 {[%emt 0:00:06]} b6 {[%emt 0:00:04]} 4. Bg2 {[%emt 0:00:04]} Bb7 {[%emt 0:00:03]} 5. d3 {[%emt 0:00:05]} Be7 {[%emt 0:00:05]} 6. Bd2 {[%emt 0:00:08]} c5 {[%emt 0:00:11]} 7. e4 {[%emt 0:00:05]} d6 {[%emt 0:00:07]} 8. Qe2 {[%emt 0:00:09]} Nbd7 {[%emt 0:02:23]} 9. O-O {[%emt 0:00:37]} O-O {[%emt 0:00:37]} 10. Nd1 {[%emt 0:00:38]} Qc7 {[%emt 0:00:37]} 11. b3 {[%emt 0:00:16]} b5 {[%emt 0:00:15]} 12. Bc3 {[%emt 0:00:15]} a6 {[%emt 0:00:08]} 13. Bb2 {[%emt 0:00:08]} h6 {[%emt 0:00:33]} 14. Rc1 {[%emt 0:00:46]} Nb6 {[%emt 0:00:19]} 15. Nd2 {[%emt 0:00:25]} Qd7 {[%emt 0:01:04]} 16. f4 {[%emt 0:00:17]} Rfc8 {[%emt 0:00:53]} 17. e5 {[%emt 0:00:14]} dxe5 {[%emt 0:00:31]} 18. fxe5 {[%emt 0:00:04]} Nh7 {[%emt 0:00:51]} 19. Bxb7 {[%emt 0:00:33]} Qxb7 {[%emt 0:00:10]} 20. Qf2 {[%emt 0:00:10]} Bg5 {[%emt 0:00:24]} 21. h4 {[%emt 0:00:33]} Bxd2 {[%emt 0:00:32]} 22. Qxd2 {[%emt 0:00:04]} c4 {[%emt 0:00:05]} 23. dxc4 {[%emt 0:00:37]} bxc4 {[%emt 0:00:10]} 24. Qf4 {[%emt 0:00:15]} Nd5 {[%emt 0:00:13]} 25. Qf3 {[%emt 0:00:13]} Rc7 {[%emt 0:01:54]} 26. Ba3 {[%emt 0:01:42]} Rac8 {[%emt 0:00:46]} 27. Bd6 {[%emt 0:00:08]} Rc6 {[%emt 0:00:10]} 28. b4 {[%emt 0:02:14]} Qa7+ {[%emt 0:02:57]} 29. Kg2 {[%emt 0:00:58]} Qb7 {[%emt 0:00:41]} 30. c3 {[%emt 0:00:15]} Nf8 {[%emt 0:00:44]} 31. Ne3 {[%emt 0:02:06]} Nxe3+ {[%emt 0:00:22]} 32. Qxe3 {[%emt 0:00:06]} Rxd6+ {[%emt 0:00:19]} 33. Qf3 {[%emt 0:00:12]} Rd2+ {[%emt 0:00:25]} 34. Kh3 {[%emt 0:00:07]} Qxf3 {[%emt 0:00:15]} 35. Rxf3 {[%emt 0:00:03]} Rxa2 {[%emt 0:00:19]} 36. Rcf1 {[%emt 0:00:05]} Rc7 {[%emt 0:00:07]} 37. Kg4 {[%emt 0:00:08]} Ng6 {[%emt 0:00:06]} 38. Re3 {[%emt 0:00:06]} Rd2 {[%emt 0:00:30]} 39. h5 {[%emt 0:00:04]} Ne7 {[%emt 0:00:12]} 40. Ra1 {[%emt 0:00:19]} Rc6 {[%emt 0:00:08]} 41. Rc1 {[%emt 0:00:11]} Nf5 {[%emt 0:00:09]} 42. Rf3 {[%emt 0:00:13]} Rd3 {[%emt 0:02:29]} 43. Kf4 {[%emt 0:00:31]} Rxf3+ {[%emt 0:00:36]} 44. Kxf3 {[%emt 0:00:05]} Kf8 {[%emt 0:00:29]} 45. g4 {[%emt 0:00:05]} Ne7 {[%emt 0:00:05]} 46. Rd1 {[%emt 0:00:04]} Nd5 {[%emt 0:00:04]} 47. Rc1 {[%emt 0:00:08]} Ke7 {[%emt 0:00:05]} 48. Ke4 {[%emt 0:00:04]} f6 {[%emt 0:00:10]} 49. exf6+ {[%emt 0:00:05]} gxf6 {[%emt 0:00:30]} 50. Kd4 {[%emt 0:00:08]} Kd6 {[%emt 0:00:17]} 51. Rc2 {[%emt 0:00:11]} e5+ {[%emt 0:00:10]} 52. Ke4 {[%emt 0:00:04]} Ke6 {[%emt 0:00:05]} 53. Rc1 {[%emt 0:00:10]} Rd6 {[%emt 0:00:17]} 54. Rc2 {[%emt 0:00:12]} Nf4 {[%emt 0:00:24]} 55. Ra2 {[%emt 0:00:14]} Nd3 {[%emt 0:01:27]} 56. Ra5 {[%emt 0:00:08]} Nf2+ {[%emt 0:00:12]} 57. Kf3 {[%emt 0:00:05]} Nd1 {[%emt 0:00:07]} 58. Rc5 {[%emt 0:00:14]} Nxc3 {[%emt 0:00:05]} 59. Rxc4 {[%emt 0:00:02]} Nd5 {[%emt 0:00:25]} 60. Ke4 {[%emt 0:00:14]} Rb6 {[%emt 0:00:16]} 61. Rc8 {[%emt 0:00:20]} Rxb4+ {[%emt 0:00:15]} 62. Kf3 {[%emt 0:00:03]} Rf4+ {[%emt 0:00:21]} 63. Kg3 {[%emt 0:00:03]} Kf7 {[%emt 0:00:32]} 64. Rd8 {[%emt 0:00:10]} Ne7 {[%emt 0:00:11]} 65. Rd6 {[%emt 0:00:06]} a5 {[%emt 0:00:06]} 66. Ra6 {[%emt 0:00:04]} a4 {[%emt 0:00:03]} 67. g5 {[%emt 0:00:07]} fxg5 {[%emt 0:00:16]} 68. Rxh6 {[%emt 0:00:04]} Kg7 {[%emt 0:00:14]} 69. Ra6 {[%emt 0:00:09]} Nf5+ {[%emt 0:01:00]} 70. Kg2 {[%emt 0:00:09]} Rb4 {[%emt 0:00:09]} 71. Ra7+ {[%emt 0:00:05]} Kh6 {[%emt 0:00:05]} 72. Rf7 {[%emt 0:00:07]} Nh4+ {[%emt 0:00:06]} 73. Kg3 {[%emt 0:00:09]} Kxh5 {[%emt 0:00:06]} 74. Ra7 {[%emt 0:00:07]} Rb3+ {[%emt 0:00:05]} 0-1

[Event "African Online-ch Women 2021"]
[Site "Online"]
[Date "2021.02.01"]
[Round "6.14"]
[White "Castro, Neusa Aridas De"]
[Black "Karania, Saloni"]
[Result "1-0"]
[ECO "B00"]
[WhiteElo "1512"]
[BlackElo "1304"]
[Annotator "NA RC"]
[PlyCount "121"]
[EventDate "2021.02.01"]
[EventType "swiss"]
[EventCountry "NET"]
[SourceTitle "playchess.com"]
[Source "ChessBase"]
[SourceQuality "1"]
[TimeControl "1500+10"]

1. e4 {[%emt 0:00:00]} b6 {[%emt 0:00:04]} 2. Nf3 {[%emt 0:00:11]} Bb7 {[%emt 0:00:03]} 3. Nc3 {[%emt 0:00:02]} e6 {[%emt 0:00:07]} 4. Bc4 {[%emt 0:00:05]} Nf6 {[%emt 0:00:21]} 5. d3 {[%emt 0:00:07]} h6 {[%emt 0:00:13]} 6. a3 {[%emt 0:00:21]} c5 {[%emt 0:00:24]} 7. Bf4 {[%emt 0:00:13]} d5 {[%emt 0:01:11]} 8. exd5 {[%emt 0:01:42]} exd5 {[%emt 0:00:21]} 9. Qe2+ {[%emt 0:00:29]} Be7 {[%emt 0:00:36]} 10. Bb5+ {[%emt 0:00:12]} Bc6 {[%emt 0:00:38]} 11. Bxc6+ {[%emt 0:00:24]} Nxc6 {[%emt 0:00:04]} 12. O-O {[%emt 0:00:02]} O-O {[%emt 0:01:38]} 13. Qd2 {[%emt 0:00:42]} d4 {[%emt 0:00:36]} 14. Ne2 {[%emt 0:00:18]} Nd5 {[%emt 0:00:39]} 15. Bg3 {[%emt 0:00:36]} Re8 {[%emt 0:00:26]} 16. Rfe1 {[%emt 0:00:08]} Bf6 {[%emt 0:00:38]} 17. Nf4 {[%emt 0:00:17]} Ne5 {[%emt 0:01:12]} 18. Nxe5 {[%emt 0:00:41]} Bxe5 {[%emt 0:02:10]} 19. Rad1 {[%emt 0:03:10]} Qd6 {[%emt 0:02:57]} 20. Nh5 {[%emt 0:00:55]} Bxg3 {[%emt 0:01:00]} 21. Nxg3 {[%emt 0:00:10]} Qc6 {[%emt 0:01:29]} 22. Re4 {[%emt 0:00:29]} Nf6 {[%emt 0:00:46]} 23. Re2 {[%emt 0:00:15]} Rac8 {[%emt 0:01:28]} 24. Rde1 {[%emt 0:00:09]} Red8 {[%emt 0:01:01]} 25. Qf4 {[%emt 0:00:09]} Nd5 {[%emt 0:01:45]} 26. Qf3 {[%emt 0:00:19]} Qf6 {[%emt 0:01:22]} 27. Qxf6 {[%emt 0:01:00]} Nxf6 {[%emt 0:00:04]} 28. Nf5 {[%emt 0:00:05]} Kh7 {[%emt 0:00:26]} 29. Re7 {[%emt 0:00:13]} Kg6 {[%emt 0:00:32]} 30. Nh4+ {[%emt 0:00:08]} Kg5 {[%emt 0:00:11]} 31. Nf3+ {[%emt 0:00:04]} Kg6 {[%emt 0:00:20]} 32. Ne5+ {[%emt 0:00:04]} Kh7 {[%emt 0:00:47]} 33. Nxf7 {[%emt 0:00:15]} Rf8 {[%emt 0:00:17]} 34. Ne5 {[%emt 0:00:05]} a6 {[%emt 0:00:23]} 35. Nf3 {[%emt 0:00:04]} Nd5 {[%emt 0:00:16]} 36. Rd7 {[%emt 0:00:21]} Nf6 {[%emt 0:00:09]} 37. Rb7 {[%emt 0:00:04]} b5 {[%emt 0:00:25]} 38. Ree7 {[%emt 0:00:13]} Rg8 {[%emt 0:00:28]} 39. Nh4 {[%emt 0:00:19]} Rce8 {[%emt 0:00:12]} 40. Nf5 {[%emt 0:00:33]} Rxe7 {[%emt 0:00:09]} 41. Rxe7 {[%emt 0:00:24]} Kg6 {[%emt 0:00:17]} 42. Ng3 {[%emt 0:00:08]} c4 {[%emt 0:00:45]} 43. dxc4 {[%emt 0:01:02]} bxc4 {[%emt 0:00:05]} 44. Rc7 {[%emt 0:00:03]} Re8 {[%emt 0:00:16]} 45. Kf1 {[%emt 0:00:07]} c3 {[%emt 0:00:13]} 46. bxc3 {[%emt 0:00:14]} dxc3 {[%emt 0:00:09]} 47. Rxc3 {[%emt 0:00:03]} Ng4 {[%emt 0:00:15]} 48. f3 {[%emt 0:00:57]} Ne3+ {[%emt 0:00:11]} 49. Kg1 {[%emt 0:00:26]} Nd1 {[%emt 0:00:26]} 50. Rc6+ {[%emt 0:00:19]} Kh7 {[%emt 0:00:06]} 51. h4 {[%emt 0:00:26]} Re1+ {[%emt 0:00:22]} 52. Kh2 {[%emt 0:00:11]} Nf2 {[%emt 0:01:03]} 53. Rxa6 {[%emt 0:00:48]} Rc1 {[%emt 0:00:05]} 54. Rc6 {[%emt 0:00:04]} Nd1 {[%emt 0:00:04]} 55. c4 {[%emt 0:00:10]} Ne3 {[%emt 0:00:05]} 56. Kh3 {[%emt 0:00:23]} Rc2 {[%emt 0:00:21]} 57. Nh5 {[%emt 0:00:23]} Rxg2 {[%emt 0:00:58]} 58. Rc7 {[%emt 0:00:26]} Rg1 {[%emt 0:00:08]} 59. Ng3 {[%emt 0:01:42]} Ra1 {[%emt 0:00:21]} 60. Ne4 {[%emt 0:01:09]} Rh1+ {[%emt 0:00:29]} 61. Kg3 {[%emt 0:00:06]} 1-0